bitfinex/quotes_BTCUSD_20250226
["timestamp","ask_amount","ask_price","bid_price","bid_amount"]
[1740607204631,0.23572,84847.0,84815.0,0.0128]
[1740607204836,0.176782,84850.0,84849.0,0.02]
[1740607205031,0.176782,84850.0,84849.0,0.02596825]
[1740607205438,0.235723,84845.0,84833.0,0.00596825]
[1740607205682,0.3769562,84837.0,84832.0,0.00596825]
[1740607205895,0.3769562,84837.0,84831.0,0.00596825]
[1740607206032,0.3769562,84837.0,84827.0,0.00096822]
[1740607206033,0.235761,84832.0,84829.0,0.02]
[1740607206383,0.412581,84832.0,84831.0,0.00596825]
[1740607206967,0.235767,84830.0,84827.0,0.00096822]
[1740607207156,0.176828,84828.0,84827.0,0.00096822]
[1740607207428,0.18064011,84828.0,84827.0,0.00096822]
[1740607207603,0.50894011,84828.0,84827.0,0.00096822]
[1740607208179,0.50894011,84828.0,84819.0,0.1050845]
[1740607208180,0.176845,84820.0,84819.0,0.1050845]
[1740607208328,0.59944959,84820.0,84819.0,0.00012207]
[1740607208518,0.60326363,84820.0,84819.0,0.00012207]
[1740607209766,0.505145,84820.0,84819.0,0.02609032]
[1740607210126,0.506145,84820.0,84819.0,0.00012207]
[1740607210352,0.506145,84820.0,84788.0,0.1050845]
[1740607210353,0.176909,84789.0,84788.0,0.1250845]
[1740607210556,0.176909,84789.0,84788.0,0.13117491]
[1740607211159,0.176909,84789.0,84788.0,0.02609041]
[1740607211766,0.176868,84809.0,84808.0,0.02596825]
[1740607212406,0.176868,84809.0,84808.0,0.02496825]
[1740607213235,0.177868,84809.0,84808.0,0.03196825]
[1740607213562,0.176868,84809.0,84808.0,0.02496825]
[1740607213912,0.177868,84809.0,84808.0,0.03196825]
[1740607214651,0.001,84809.0,84808.0,0.03196825]
[1740607214854,0.001,84809.0,84808.0,0.04567353]
[1740607215075,0.177868,84809.0,84808.0,0.04567353]
[1740607215504,0.001,84809.0,84808.0,0.04567353]
[1740607215697,0.0475,84834.0,84833.0,0.00496825]
[1740607215698,0.224315,84834.0,84833.0,0.00496825]
[1740607215876,0.0475,84834.0,84825.0,0.00496825]
[1740607216079,0.176838,84823.0,84822.0,0.00496825]
[1740607216317,0.176838,84823.0,84822.0,0.02]
[1740607216533,0.00381496,84827.0,84823.0,0.00496825]
[1740607216737,0.18064496,84827.0,84826.0,0.02496825]
[1740607216948,0.18064496,84827.0,84826.0,0.02509041]
[1740607217148,0.17683,84827.0,84826.0,0.02509041]
[1740607217725,0.049,84854.0,84839.0,0.02496825]
[1740607217900,0.505103,84840.0,84839.0,0.02496825]
[1740607218102,0.176803,84840.0,84839.0,0.02496825]
[1740607218729,0.225774,84854.0,84853.0,0.02496825]
[1740607219714,0.176774,84854.0,84853.0,0.02496825]
[1740607219914,0.176774,84854.0,84853.0,0.03199041]
[1740607220189,0.235681,84861.0,84860.0,0.02486825]
[1740607220367,0.222236,84872.0,84871.0,0.02486825]
[1740607220577,0.235632,84878.0,84876.0,0.0199]
[1740607221086,0.235632,84878.0,84872.0,0.0199]
[1740607221087,0.176734,84873.0,84872.0,0.0199]
[1740607222153,0.412298,84890.0,84889.0,0.00496825]
[1740607222353,0.412298,84890.0,84889.0,0.02486825]
[1740607222707,0.412298,84890.0,84854.0,0.3273]
[1740607222708,0.0060022,84891.0,84890.0,0.02486825]
[1740607223405,0.0060022,84891.0,84890.0,0.20156725]
[1740607223605,0.00641111,84891.0,84890.0,0.24528548]
[1740607223765,0.00641111,84891.0,84890.0,0.25228548]
[1740607224532,0.00641111,84891.0,84890.0,0.27228548]
[1740607224735,0.00641111,84891.0,84890.0,0.28682633]
[1740607224938,0.412128,84925.0,84924.0,0.02486825]
[1740607225064,0.412128,84925.0,84924.0,0.02499041]
[1740607225258,0.1821992,84928.0,84927.0,0.02486825]
[1740607226460,0.18756641,84928.0,84927.0,0.02486825]
[1740607226661,0.18756641,84928.0,84927.0,0.02986825]
[1740607227094,0.18756641,84928.0,84927.0,0.02486825]
[1740607227295,0.18756641,84928.0,84927.0,0.00496825]
[1740607227497,0.18756641,84928.0,84924.0,0.00012216]
[1740607227498,0.176626,84925.0,84924.0,0.00012216]
[1740607227864,0.63701226,84925.0,84924.0,0.00012216]
[1740607228091,0.64082786,84925.0,84924.0,0.00012216]
[1740607228301,0.64082786,84925.0,84924.0,0.02499041]
[1740607228302,0.18251226,84925.0,84924.0,0.02499041]
[1740607228464,0.00588626,84925.0,84924.0,0.20161841]
[1740607228678,0.00588626,84925.0,84924.0,0.0796931]
[1740607228875,0.0055792,84928.0,84927.0,0.02486825]
[1740607229081,0.0055792,84928.0,84927.0,0.03186825]
[1740607229259,0.0055792,84928.0,84927.0,0.20849025]
[1740607229458,0.0055792,84928.0,84927.0,0.03186825]
[1740607229706,0.0055792,84928.0,84927.0,0.02651638]
[1740607229880,0.0055792,84928.0,84927.0,0.20980223]
[1740607230083,0.0055792,84928.0,84927.0,0.2081541]
[1740607230340,0.0055792,84928.0,84927.0,0.2835541]
[1740607230532,0.0055792,84928.0,84927.0,0.33809495]
[1740607230751,0.0055792,84928.0,84927.0,0.66539495]
[1740607231030,0.0055792,84928.0,84927.0,1.21319495]
[1740607231582,0.0055792,84928.0,84927.0,0.0315321]
[1740607231839,0.17662,84928.0,84927.0,0.02486825]
[1740607232027,0.18033,84928.0,84927.0,0.02486825]
[1740607232221,0.00371,84928.0,84927.0,0.02486825]
[1740607232978,0.0041332,84928.0,84927.0,0.03186825]
[1740607233405,0.0041332,84928.0,84927.0,0.02486825]
[1740607233567,0.0041332,84928.0,84927.0,0.02651623]
[1740607233769,0.0041332,84928.0,84927.0,0.06173067]
[1740607234066,0.0041332,84928.0,84927.0,0.03186825]
[1740607234276,0.0041332,84928.0,84927.0,0.21013825]
[1740607234496,0.0041332,84928.0,84927.0,1.2151791]
[1740607234703,0.0041332,84928.0,84927.0,1.2135311]
[1740607234987,0.0004235,84935.0,84934.0,0.2560161]
[1740607235175,0.10710459,85005.0,84947.0,0.2559891]
[1740607235176,0.0046421,84948.0,84947.0,0.2559891]
[1740607235324,0.0046421,84948.0,84947.0,0.6714891]
[1740607235506,0.281588,85003.0,84953.0,0.2559771]
[1740607235507,0.0463,85003.0,84953.0,0.2559771]
[1740607235711,0.235352,84980.0,84953.0,0.27387601]
[1740607235966,0.23532,84991.0,84953.0,0.27387601]
[1740607235967,0.176507,84982.0,84953.0,0.27387601]
[1740607236225,0.176514,84980.0,84953.0,0.27387601]
[1740607236442,0.09430459,85005.0,84953.0,0.27387601]
[1740607236443,0.0004236,85013.0,84982.0,0.20137525]
[1740607236640,0.0004236,85013.0,84982.0,0.20302209]
[1740607236914,0.18213302,84983.0,84982.0,0.02486825]
[1740607237071,0.00562802,84983.0,84982.0,0.02486825]
[1740607237283,0.18213302,84983.0,84982.0,0.02486825]
[1740607237655,0.235343,84982.0,84976.0,0.0199]
[1740607237845,0.176516,84978.0,84977.0,0.0199]
[1740607238023,0.235362,84976.0,84972.0,0.0199]
[1740607238344,0.3769562,84979.0,84954.0,0.00692952]
[1740607238345,0.176564,84955.0,84954.0,0.00692952]
[1740607238545,0.176643,84917.0,84916.0,0.01776825]
[1740607238725,0.3769562,84965.0,84945.0,0.00496825]
[1740607238726,0.176582,84946.0,84945.0,0.00496825]
[1740607238923,0.18202447,84946.0,84945.0,0.02486825]
[1740607239137,0.18192564,84946.0,84945.0,0.02486825]
[1740607239539,0.18192564,84946.0,84945.0,0.0199]
[1740607239700,0.18192564,84946.0,84945.0,0.02499041]
[1740607240159,0.18192564,84946.0,84945.0,0.03199041]
[1740607240719,0.00544247,84946.0,84945.0,0.20857441]
[1740607240950,0.4545562,84993.0,84982.0,0.0199]
[1740607241151,0.4170646,84983.0,84982.0,0.02486825]
[1740607241547,0.0052186,84983.0,84982.0,0.02486825]
[1740607241753,0.1817236,84983.0,84982.0,0.02486825]
[1740607242130,0.18213302,84983.0,84982.0,0.02486825]
[1740607242774,0.18213302,84983.0,84982.0,0.03186825]
[1740607243134,0.18213302,84983.0,84982.0,0.02486825]
[1740607243824,0.18213302,84983.0,84982.0,0.02476825]
[1740607244450,0.18213302,84983.0,84982.0,0.03176825]
[1740607245055,0.18213302,84983.0,84982.0,0.02476825]
[1740607245299,0.18213302,84983.0,84982.0,0.03176825]
[1740607245838,0.00562802,84983.0,84982.0,0.20127525]
[1740607245966,0.00562802,84983.0,84982.0,0.07354267]
[1740607246170,0.00605082,84983.0,84982.0,0.25004967]
[1740607246454,0.00605082,84983.0,84982.0,0.24840278]
[1740607246929,0.00605082,84983.0,84982.0,0.07189578]
[1740607247144,0.00605082,84983.0,84982.0,0.27004978]
[1740607247339,0.00605082,84983.0,84982.0,0.26840278]
[1740607247542,0.00518835,84983.0,84982.0,0.28294363]
[1740607247688,0.00518835,84983.0,84982.0,0.28987668]
[1740607248172,0.00518835,84983.0,84982.0,0.06646968]
[1740607248328,0.00518835,84983.0,84982.0,0.10801643]
[1740607248521,0.00518835,84983.0,84982.0,0.11501643]
[1740607248730,0.00518835,84983.0,84982.0,0.29152343]
[1740607248925,0.235243,85019.0,84982.0,0.29152343]
[1740607248926,0.07908,85069.0,85012.0,0.20121325]
[1740607249248,0.1764,85034.0,85012.0,0.25561943]
[1740607249428,0.0184721,85042.0,85012.0,0.25397325]
[1740607249636,0.235148,85053.0,85012.0,0.23397325]
[1740607249989,0.176389,85040.0,85012.0,0.2755141]
[1740607250294,0.0046422,85017.0,85016.0,0.2557461]
[1740607251414,0.01846622,85064.0,85051.0,0.02476825]
[1740607251833,0.235133,85059.0,85051.0,0.02476825]
[1740607252034,0.1815806,85052.0,85051.0,0.02476825]
[1740607252697,0.0052186,85052.0,85051.0,0.02489041]
[1740607252999,0.0039035,85056.0,85055.0,0.0199]
[1740607253241,0.0039035,85056.0,85053.0,0.00486825]
[1740607253448,0.17636,85053.0,85052.0,0.00486825]
[1740607253651,0.37654811,85054.0,85051.0,0.00012216]
[1740607253959,0.255462,85052.0,85051.0,0.00012216]
[1740607254303,0.176362,85052.0,85051.0,0.00012216]
[1740607254691,0.176362,85052.0,85051.0,0.02702216]
[1740607254897,0.176362,85052.0,85051.0,0.00712216]
[1740607255118,0.176362,85052.0,85051.0,0.02702216]
[1740607255317,0.176362,85052.0,85051.0,0.00012216]
[1740607255482,0.176362,85052.0,85051.0,0.00712216]
[1740607255880,0.176362,85052.0,85051.0,0.00012216]
[1740607256085,0.22295518,85052.0,85051.0,0.00012216]
[1740607256356,0.176362,85052.0,85051.0,0.00712216]
[1740607256486,0.0039035,85056.0,85055.0,0.02476825]
[1740607257127,0.1802575,85056.0,85055.0,0.0199]
[1740607257304,0.176362,85052.0,85051.0,0.00712216]
[1740607257704,0.176362,85052.0,85051.0,0.03189041]
[1740607258110,0.176362,85052.0,85051.0,0.02702216]
[1740607258309,0.27774095,85052.0,85051.0,0.00012216]
[1740607258522,0.176362,85052.0,85051.0,0.00212216]
[1740607258721,0.221358,85054.0,85053.0,0.00486825]
[1740607258922,0.2390435,85056.0,85051.0,0.02202216]
[1740607258923,0.0043258,85056.0,85055.0,0.02476825]
[1740607259133,0.1806798,85056.0,85055.0,0.02476825]
[1740607259736,0.1806798,85056.0,85055.0,0.00486825]
[1740607259961,0.0043258,85056.0,85055.0,0.02476825]
[1740607260162,0.0043258,85056.0,85055.0,0.20112425]
[1740607260378,0.0184615,85064.0,85063.0,0.02476825]
[1740607260379,0.1947985,85064.0,85063.0,0.02476825]
[1740607261347,0.0184615,85064.0,85063.0,0.20100725]
[1740607261751,8e-05,85069.0,85068.0,0.216229]
[1740607262098,8e-05,85069.0,85068.0,0.22264253]
[1740607262227,8e-05,85069.0,85068.0,0.26410289]
[1740607262427,8e-05,85069.0,85068.0,0.32399043]
[1740607262988,0.0457,85126.0,85099.0,0.02466825]
[1740607263197,0.37654811,85143.0,85099.0,0.20093325]
[1740607263198,0.02280123,85100.0,85099.0,0.20093325]
[1740607264251,0.19947416,85100.0,85099.0,0.02466825]
[1740607264478,0.02321116,85100.0,85099.0,0.02466825]
[1740607264894,0.02321116,85100.0,85099.0,0.07414097]
[1740607265099,0.02321116,85100.0,85099.0,0.02466825]
[1740607265878,0.02321116,85100.0,85099.0,0.03166825]
[1740607266080,0.02321116,85100.0,85099.0,0.20793325]
[1740607266296,0.19947416,85100.0,85099.0,0.03166825]
[1740607266535,0.19947416,85100.0,85099.0,0.01176825]
[1740607266747,0.19947416,85100.0,85099.0,0.03166825]
[1740607266953,0.19947416,85100.0,85099.0,0.007]
[1740607267515,0.17629,85087.0,85086.0,0.00476825]
[1740607267716,0.17629,85087.0,85086.0,0.02466825]
[1740607267972,0.02321116,85100.0,85099.0,0.00476825]
[1740607268140,0.19947416,85100.0,85099.0,0.02466825]
[1740607268339,0.176269,85097.0,85096.0,0.0199]
[1740607268999,0.19947416,85100.0,85068.0,0.02]
[1740607269000,0.02321116,85100.0,85099.0,0.02466825]
[1740607269199,0.19947416,85100.0,85099.0,0.02966825]
[1740607269509,0.19947416,85100.0,85099.0,0.005]
[1740607269692,0.24777416,85100.0,85099.0,0.005]
[1740607270039,0.176312,85076.0,85075.0,0.00476825]
[1740607270253,0.176329,85068.0,85067.0,0.00476825]
[1740607270603,0.37654811,85090.0,85016.0,0.00875565]
[1740607270604,0.0478,85070.0,85063.0,0.0199]
[1740607270785,0.63038511,85064.0,85063.0,0.0199]
[1740607270995,0.176375,85046.0,85045.0,0.00476825]
[1740607271204,0.176375,85046.0,85045.0,0.02466825]
[1740607271699,0.235122,85062.0,85059.0,0.0199]
[1740607271905,0.176337,85064.0,85063.0,0.02766825]
[1740607272142,0.17631,85077.0,85076.0,0.02466825]
[1740607272330,0.176309,85078.0,85077.0,0.02466825]
[1740607272611,0.176306,85080.0,85079.0,0.02466825]
[1740607272920,0.176269,85097.0,85096.0,0.02466825]
[1740607273462,0.234992,85110.0,85096.0,0.02466825]
[1740607273463,0.19989596,85100.0,85099.0,0.0199]
[1740607273705,0.235025,85098.0,85090.0,0.0199]
[1740607273879,0.176279,85092.0,85091.0,0.0189]
[1740607274078,0.176296,85084.0,85083.0,0.0189]
[1740607274283,0.176356,85055.0,85054.0,0.02531375]
[1740607274491,0.176356,85055.0,85054.0,0.02366825]
[1740607275328,0.09405734,85090.0,85079.0,0.0189]
[1740607275540,0.176304,85080.0,85079.0,0.0179]
[1740607276035,0.411376,85080.0,85079.0,0.0179]
[1740607276193,0.17631,85077.0,85076.0,0.00476825]
[1740607276392,0.17631,85077.0,85076.0,0.02266825]
[1740607276592,0.235077,85079.0,85073.0,0.0179]
[1740607276909,0.235077,85079.0,85068.0,0.02266825]
[1740607276910,0.176327,85069.0,85068.0,0.02266825]
[1740607277498,0.00040993,85081.0,85080.0,0.02266825]
[1740607277499,0.41178293,85081.0,85080.0,0.02266825]
[1740607278604,0.41278293,85081.0,85080.0,0.02966825]
[1740607279213,0.00140993,85081.0,85080.0,0.02966825]
[1740607279854,0.00040993,85081.0,85080.0,0.05078877]
[1740607280018,0.00040993,85081.0,85080.0,0.22544778]
[1740607280224,0.00040993,85081.0,85080.0,0.23144778]
[1740607280647,0.00040993,85081.0,85080.0,0.22544778]
[1740607280842,0.00040993,85081.0,85080.0,0.23244778]
[1740607281020,0.176277,85093.0,85092.0,0.0179]
[1740607281226,0.176277,85093.0,85092.0,0.02279041]
[1740607281733,0.2409109,85093.0,85092.0,0.00012216]
[1740607281900,0.176277,85093.0,85092.0,0.00012216]
[1740607282105,0.17781475,85093.0,85092.0,0.00012216]
[1740607282770,0.09405734,85093.0,85092.0,0.00012216]
[1740607282935,0.27033434,85093.0,85092.0,0.00012216]
[1740607283579,0.176277,85093.0,85092.0,0.02279041]
[1740607283978,0.19948603,85100.0,85099.0,0.02266825]
[1740607285125,0.19948603,85100.0,85099.0,0.0249]
[1740607285404,0.19948603,85100.0,85099.0,0.007]
[1740607285602,0.19948603,85100.0,85099.0,0.02966825]
[1740607285809,0.19948603,85100.0,85099.0,0.007]
[1740607286027,0.19948603,85100.0,85099.0,0.0249]
[1740607286704,0.19948603,85100.0,85099.0,0.02266825]
[1740607286920,0.19948603,85100.0,85099.0,0.02966825]
[1740607287339,0.02322303,85100.0,85099.0,0.02266825]
[1740607287533,0.19948603,85100.0,85099.0,0.02966825]
[1740607288117,0.02322303,85100.0,85099.0,0.02266825]
[1740607288283,0.02322303,85100.0,85099.0,0.20593325]
[1740607288606,0.02322303,85100.0,85099.0,0.25002888]
[1740607288991,0.234954,85123.0,85122.0,0.00476825]
[1740607288992,0.41860274,85123.0,85122.0,0.00476825]
[1740607289311,0.42293676,85123.0,85122.0,0.02266825]
[1740607290227,0.42293676,85123.0,85122.0,0.00012216]
[1740607290781,0.42293676,85123.0,85122.0,0.00712216]
[1740607290958,0.54763057,85123.0,85122.0,0.00712216]
[1740607291173,0.09405734,85126.0,85099.0,0.02266825]
[1740607291174,0.176263,85100.0,85099.0,0.02266825]
[1740607291376,0.176263,85100.0,85099.0,0.0179]
[1740607291731,0.09405734,85115.0,85089.0,0.10394059]
[1740607291732,0.01845116,85111.0,85110.0,0.02266825]
[1740607291934,0.01845116,85111.0,85110.0,0.19891025]
[1740607292132,0.01533003,85136.0,85135.0,0.19885825]
[1740607292366,0.01533003,85136.0,85135.0,0.02266825]
[1740607292532,0.19151803,85136.0,85135.0,0.00476825]
[1740607292725,0.19151803,85136.0,85135.0,0.02266825]
[1740607293537,0.19151803,85136.0,85135.0,0.02279044]
[1740607293738,0.19151803,85136.0,85135.0,0.02179044]
[1740607294574,0.19251803,85136.0,85135.0,0.02879044]
[1740607294743,0.19251803,85136.0,85135.0,0.00712219]
[1740607294946,0.19151803,85136.0,85135.0,0.00012219]
[1740607295315,0.19251803,85136.0,85135.0,0.00712219]
[1740607295733,0.19251803,85136.0,85135.0,0.02502219]
[1740607295928,0.19251803,85136.0,85135.0,0.00712219]
[1740607296104,0.19251803,85136.0,85135.0,0.02879044]
[1740607296627,0.19151803,85136.0,85135.0,0.02179044]
[1740607296791,0.19151803,85136.0,85135.0,0.02879044]
[1740607297374,0.19151803,85136.0,85135.0,0.00389044]
[1740607297574,0.19151803,85136.0,85135.0,0.02879044]
[1740607297833,0.19151803,85136.0,85135.0,0.00712219]
[1740607298139,0.19151803,85136.0,85135.0,0.00012219]
[1740607299106,0.19151803,85136.0,85135.0,0.00712219]
[1740607299738,0.20996452,85136.0,85135.0,0.00712219]
[1740607300195,0.20996452,85136.0,85135.0,0.00012219]
[1740607300371,0.30129897,85136.0,85135.0,0.00012219]
[1740607300670,0.28285248,85136.0,85135.0,0.00212219]
[1740607301105,0.19151803,85136.0,85135.0,0.00012219]
[1740607301235,0.19151803,85136.0,85135.0,0.00212219]
[1740607301858,0.19151803,85136.0,85135.0,0.00012219]
[1740607302066,0.19151803,85136.0,85135.0,0.02379044]
[1740607302911,0.01533003,85136.0,85135.0,0.02379044]
[1740607303291,0.19151803,85136.0,85135.0,0.04378968]
[1740607303488,0.01533003,85136.0,85135.0,0.02379044]
[1740607303853,0.19151803,85136.0,85135.0,0.02179044]
[1740607304193,0.01533003,85136.0,85135.0,0.02379044]
[1740607304606,0.19151803,85136.0,85135.0,0.00389044]
[1740607304810,0.19151803,85136.0,85135.0,0.02879044]
[1740607304811,0.19251803,85136.0,85135.0,0.02879044]
[1740607305005,0.01633003,85136.0,85135.0,0.02879044]
[1740607305237,0.19251803,85136.0,85135.0,0.02879044]
[1740607306213,0.19251803,85136.0,85135.0,0.01089044]
[1740607306414,0.19251803,85136.0,85135.0,0.00712219]
[1740607306637,0.01633003,85136.0,85135.0,0.02879044]
[1740607306839,0.19151803,85136.0,85135.0,0.02179044]
[1740607307039,0.19251803,85136.0,85135.0,0.02879044]
[1740607307254,0.01633003,85136.0,85135.0,0.02879044]
[1740607307463,0.01633003,85136.0,85135.0,0.20498044]
[1740607307795,0.01533003,85136.0,85135.0,0.26710813]
[1740607307973,0.01633003,85136.0,85135.0,0.27246388]
[1740607308118,0.01633003,85136.0,85135.0,0.09627388]
[1740607308321,0.01533003,85136.0,85135.0,0.02179044]
[1740607308824,0.01633003,85136.0,85135.0,0.02879044]
[1740607309292,0.01675163,85136.0,85135.0,0.20498044]
[1740607309634,0.00106893,85138.0,85135.0,0.20498044]
[1740607309845,0.00106893,85138.0,85137.0,0.27655425]
[1740607310212,0.00106893,85138.0,85137.0,0.10036825]
[1740607310373,0.00106893,85138.0,85137.0,0.08246825]
[1740607310577,0.00106893,85138.0,85137.0,0.09946825]
[1740607310977,0.17825293,85138.0,85137.0,0.01076825]
[1740607311475,0.17825293,85138.0,85135.0,0.01802219]
[1740607311476,0.176188,85136.0,85135.0,0.01802219]
[1740607311678,0.176188,85136.0,85135.0,0.02179044]
[1740607312492,0.176188,85136.0,85135.0,0.00012219]
[1740607313663,0.1791802,85136.0,85135.0,0.00012219]
[1740607313864,0.1791802,85136.0,85135.0,0.00712219]
[1740607314064,0.1791802,85136.0,85135.0,0.01089044]
[1740607314466,0.1791802,85136.0,85135.0,0.02179044]
[1740607314723,0.1791802,85136.0,85135.0,0.02889044]
[1740607314724,0.1801802,85136.0,85135.0,0.02889044]
[1740607314901,0.0039922,85136.0,85135.0,0.02889044]
[1740607315262,0.0029922,85136.0,85135.0,0.04404331]
[1740607315466,0.1801802,85136.0,85135.0,0.02889044]
[1740607315887,0.0039922,85136.0,85135.0,0.02889044]
[1740607316087,0.1801802,85136.0,85135.0,0.02889044]
[1740607316523,0.0039922,85136.0,85135.0,0.02889044]
[1740607316872,0.1791802,85136.0,85135.0,0.02189044]
[1740607317491,0.1791802,85136.0,85135.0,0.02889044]
[1740607317852,0.0004227,85150.0,85149.0,0.02166825]
[1740607318327,0.1765817,85150.0,85149.0,0.02166825]
[1740607318492,0.0004227,85150.0,85149.0,0.02166825]
[1740607318675,0.1765817,85150.0,85149.0,0.02166825]
[1740607319132,0.0004227,85150.0,85149.0,0.02166825]
[1740607319568,0.0004227,85150.0,85149.0,0.09906825]
[1740607319772,0.1765817,85150.0,85149.0,0.2189249]
[1740607319953,0.1765817,85150.0,85149.0,0.2259249]
[1740607319954,0.0004227,85150.0,85149.0,0.2259249]
[1740607320113,0.1765817,85150.0,85149.0,0.2259249]
[1740607320317,0.1765817,85150.0,85149.0,0.02166825]
[1740607320614,0.1765817,85150.0,85149.0,0.02866825]
[1740607320615,0.0004227,85150.0,85149.0,0.02866825]
[1740607320818,0.1765817,85150.0,85149.0,0.02866825]
[1740607321037,0.1765817,85150.0,85149.0,0.007]
[1740607321989,0.1765817,85150.0,85146.0,2.52116187]
[1740607321990,0.19239675,85147.0,85146.0,2.52116187]
[1740607322145,0.176165,85147.0,85146.0,2.52116187]
[1740607322535,0.176165,85147.0,85146.0,2.52493012]
[1740607322736,0.176165,85147.0,85146.0,2.54283012]
[1740607322973,0.0004227,85150.0,85149.0,0.02166825]
[1740607323195,0.1765817,85150.0,85149.0,0.02866825]
[1740607323391,0.0004227,85150.0,85149.0,0.1485249]
[1740607323542,0.1765817,85150.0,85149.0,0.1485249]
[1740607323741,0.1765817,85150.0,85149.0,0.1415249]
[1740607324169,0.1765817,85150.0,85149.0,0.02166825]
[1740607324479,0.17648299,85150.0,85149.0,0.02166825]
[1740607324686,0.17648299,85150.0,85149.0,0.0249]
[1740607324885,0.00032399,85150.0,85149.0,0.02866825]
[1740607325126,0.00032399,85150.0,85149.0,0.1485249]
[1740607325570,0.17648299,85150.0,85149.0,0.1485249]
[1740607325931,0.00032399,85150.0,85149.0,0.1485249]
[1740607326139,0.00032399,85150.0,85149.0,0.15016881]
[1740607326344,0.02963175,85197.0,85149.0,0.15016881]
[1740607326345,0.176087,85185.0,85183.0,0.0179]
[1740607326542,0.176087,85185.0,85183.0,0.02166825]
[1740607326843,0.176169,85184.0,85183.0,0.02166825]
[1740607327243,8e-05,85184.0,85183.0,0.10046825]
[1740607327411,0.176169,85184.0,85183.0,0.10046825]
[1740607327607,0.234794,85181.0,85162.0,0.5478]
[1740607327808,0.176103,85177.0,85176.0,0.0179]
[1740607328055,0.176112,85173.0,85172.0,0.0179]
[1740607328229,0.00049052,85184.0,85183.0,0.00376825]
[1740607328454,0.00049052,85184.0,85180.0,0.0179]
[1740607328455,0.176095,85181.0,85180.0,0.0179]
[1740607328658,0.176095,85181.0,85180.0,0.02156825]
[1740607329455,0.00049052,85184.0,85183.0,0.007]
[1740607329649,0.17657952,85184.0,85183.0,0.007]
[1740607330402,0.176091,85183.0,85182.0,0.00376825]
[1740607331179,0.18133085,85183.0,85182.0,0.00376825]
[1740607332197,0.18133085,85183.0,85182.0,0.02156825]
[1740607333960,0.18175445,85183.0,85182.0,0.02856825]
[1740607334298,0.18175445,85183.0,85182.0,0.02156825]
[1740607334854,0.18175445,85183.0,85182.0,0.02856825]
[1740607335058,0.0004236,85183.0,85182.0,0.53196125]
[1740607335261,0.0004236,85183.0,85182.0,0.61324678]
[1740607335807,0.0004236,85183.0,85182.0,0.43715378]
[1740607336040,0.0004236,85183.0,85182.0,0.35586825]
[1740607336176,0.1765146,85183.0,85182.0,0.01076825]
[1740607336361,0.1765146,85183.0,85182.0,0.02156825]
[1740607336792,0.1765146,85183.0,85182.0,0.02856825]
[1740607337333,0.1765146,85183.0,85182.0,0.02156825]
[1740607337677,0.1765146,85183.0,85182.0,0.02856825]
[1740607337884,0.0004236,85183.0,85182.0,0.02856825]
[1740607338195,0.1765146,85183.0,85182.0,0.02856825]
[1740607339036,0.0004236,85183.0,85182.0,0.11166825]
[1740607339376,0.1765146,85183.0,85182.0,0.12283508]
[1740607339544,0.1765146,85183.0,85182.0,0.11583508]
[1740607339989,0.1765146,85183.0,85182.0,0.12283508]
[1740607340163,0.0004236,85183.0,85182.0,0.12283508]
[1740607340374,0.1765146,85183.0,85182.0,0.13037593]
[1740607340572,0.1765146,85183.0,85182.0,0.13737593]
[1740607340985,0.1765146,85183.0,85168.0,0.3273]
[1740607340986,0.176114,85172.0,85171.0,0.02156825]
[1740607341306,0.166112,85173.0,85172.0,0.02156825]
[1740607341725,0.17657952,85184.0,85183.0,1.62022465]
[1740607341933,0.176075,85191.0,85189.0,0.02156825]
[1740607342153,0.176075,85191.0,85189.0,0.09126323]
[1740607342345,0.176076,85191.0,85189.0,0.09126323]
[1740607342527,0.234712,85211.0,85189.0,0.09126323]
[1740607342749,0.234716,85210.0,85189.0,0.28188308]
[1740607342877,0.0058316,85232.0,85192.0,0.02156825]
[1740607343080,0.0058316,85232.0,85192.0,0.02321117]
[1740607343287,0.0058316,85232.0,85192.0,0.95285202]
[1740607343491,0.175969,85242.0,85241.0,0.0178]
[1740607344741,0.175969,85242.0,85241.0,0.02669044]
[1740607345230,0.175928,85262.0,85261.0,0.0178]
[1740607345550,0.234546,85271.0,85261.0,0.0178]
[1740607345759,0.234565,85265.0,85261.0,0.0178]
[1740607345975,0.175942,85255.0,85254.0,0.00376825]
[1740607346180,0.175967,85243.0,85241.0,0.00512219]
[1740607346681,0.175967,85243.0,85242.0,0.0178]
[1740607346895,0.175967,85243.0,85242.0,0.02156825]
[1740607347498,0.175967,85243.0,85242.0,0.0178]
[1740607348142,0.175967,85243.0,85242.0,0.02156825]
[1740607348756,0.175967,85243.0,85242.0,0.02856825]
[1740607348984,0.234584,85258.0,85257.0,0.02156825]
[1740607349199,0.41052,85258.0,85257.0,0.02156825]
[1740607350655,0.42893713,85258.0,85257.0,0.02156825]
[1740607350899,0.42893713,85258.0,85257.0,0.02856825]
[1740607351514,0.42893713,85258.0,85257.0,0.007]
[1740607351670,0.175944,85254.0,85253.0,0.00376825]
[1740607351865,0.42893713,85258.0,85257.0,0.02156825]
[1740607353139,0.49528784,85258.0,85257.0,0.007]
[1740607353523,0.175969,85242.0,85241.0,0.01792219]
[1740607353937,0.175969,85242.0,85241.0,0.00012219]
[1740607354386,0.26840075,85242.0,85241.0,0.00012219]
[1740607354561,0.26840075,85242.0,85216.0,0.02873809]
[1740607354562,0.176021,85217.0,85216.0,0.01093809]
[1740607354828,0.176021,85217.0,85216.0,0.00012221]
[1740607355038,0.25841543,85217.0,85216.0,2.221e-05]
[1740607355239,0.33431543,85217.0,85216.0,2.221e-05]
[1740607355601,0.176021,85217.0,85216.0,2.221e-05]
[1740607355960,0.19225275,85217.0,85216.0,2.221e-05]
[1740607356157,0.23835275,85217.0,85216.0,2.221e-05]
[1740607356606,0.24055275,85217.0,85216.0,2.221e-05]
[1740607357141,0.24055275,85217.0,85178.0,0.00376825]
[1740607357142,0.176089,85184.0,85178.0,0.0178]
[1740607357322,0.176089,85184.0,85166.0,0.00376825]
[1740607357323,0.1936979,85184.0,85183.0,1.5987787]
[1740607357542,0.176089,85184.0,85183.0,1.5987787]
[1740607357937,0.176089,85184.0,85183.0,1.6165787]
[1740607358700,0.176089,85184.0,85183.0,1.5987787]
[1740607359256,0.19232075,85184.0,85183.0,1.5987787]
[1740607359656,0.19232075,85184.0,85183.0,1.6007787]
[1740607359886,0.23973447,85184.0,85183.0,1.6007787]
[1740607360064,0.2581698,85184.0,85183.0,1.6007787]
[1740607360251,0.2581698,85184.0,85183.0,1.5987787]
[1740607360447,0.21075608,85184.0,85183.0,1.5987787]
[1740607360649,0.21075608,85184.0,85183.0,1.5997787]
[1740607360852,0.19452433,85184.0,85183.0,1.5997787]
[1740607361054,0.21075608,85184.0,85183.0,1.5987787]
[1740607361366,0.19452433,85184.0,85183.0,1.55250754]